Cogmind - Beta 16.1 @@@ ROGUE MODE // 2026.03.04 @ 23:53:20 Player: parasect Result: Self-destructed Performance ------------- Evolutions (1) 500 Regions Visited (3) 600 Robots Destroyed (38) 190 Value Destroyed (523) 523 Prototype IDs (0) 0 Alien Tech Used (0) 0 Bonus (0) 0 TOTAL SCORE: 1813 Bonus ------- None Cogmind --------- Core Integrity 400/400 Matter 248/300 Energy 241/250 System Corruption 1% Temperature Cool (0) Movement Treading (160) Location -9/Materials Parts ------- > --- POWER (1) -------- Ion Engine > --- PROPULSION (3) --- Light Treads Light Treads Light Treads > --- UTILITY (3) ------ High-capacity Storage Unit Seismic Detector > --- WEAPON (2) ------- Assault Rifle Datajack > --- INVENTORY (20) --- Light Nuclear Core Light Treads Light Treads Large Matter Pod (150) Light Armor Plating Assault Rifle Assault Rifle Assault Rifle Grenade Launcher Grenade Launcher Rocket Launcher Mining Laser Peak State ------------ > --- POWER ------------ Ion Engine > --- PROPULSION ------- Light Treads Light Treads Light Treads > --- UTILITY ---------- High-capacity Storage Unit Seismic Detector > --- WEAPON ----------- Assault Rifle Assault Rifle > --- INVENTORY -------- Light Nuclear Core Light Treads Light Treads Large Matter Pod Light Armor Plating Assault Rifle Assault Rifle Grenade Launcher Grenade Launcher Rocket Launcher Datajack Mining Laser [Rating: 9] Favorites ----------- Power Ion Engine Engine Ion Engine Propulsion Aluminum Leg Treads Light Treads Leg Aluminum Leg Utility Seismic Detector Device Seismic Detector Storage High-capacity Storage Unit Protection Light Armor Plating Weapon Assault Rifle Ballistic Gun Assault Rifle Launcher Grenade Launcher Special Melee Weapon Datajack Build | -11 -10 -10 -9 ------- Run | Yrd Mat Min Mat Slots Evolved 2 | . . . 2 Power . | . . . . Propulsion 1 | . . . 1 Utility 1 | . . . 1 Weapon . | . . . . Parts Attached 19 | 1 12 2 4 Power 2 | . 2 . . Engine 2 | . 2 . . Core . | . . . . Reactor . | . . . . Propulsion 7 | . 4 . 3 Treads 3 | . . . 3 Leg 4 | . 4 . . Wheel . | . . . . Hover . | . . . . Flight . | . . . . Utility 5 | 1 3 1 . Device 2 | 1 1 . . Storage 2 | . 2 . . Processor . | . . . . Hackware . | . . . . Protection 1 | . . 1 . Artifact . | . . . . Weapon 5 | . 3 1 1 Energy Gun . | . . . . Energy Cannon . | . . . . Ballistic Gun 3 | . 3 . . Ballistic Cannon . | . . . . Launcher 1 | . . 1 . Special Weapon . | . . . . Impact Weapon . | . . . . Slashing Weapon . | . . . . Piercing Weapon . | . . . . Special Melee Weapon 1 | . . . 1 Unidentified Prototypes . | . . . . Parts Lost 1 | . 1 . . Power 1 | . 1 . . Propulsion . | . . . . Utility . | . . . . Weapon . | . . . . Highest Loss Streak 1 | . 1 . . To Critical Strikes . | . . . . Average Backups 10 | 6 8 12 12 Power . | 1 . . 1 Propulsion 4 | 4 2 5 2 Utility 1 | . 1 1 2 Weapon 4 | 1 3 5 6 Tool/Special . | . . . . Unused Backups 19 | . 12 . 7 Power 1 | . . . 1 Propulsion 4 | . 4 . . Utility 4 | . 3 . 1 Weapon 10 | . 5 . 5 Tool/Special . | . . . . Average Slot Usage (%) 99 | . 99 100 83 Engine 13 | . 13 14 11 Leg 27 | . 28 28 1 Device 13 | . 14 13 11 Storage 13 | . 14 14 11 Ballistic Gun 27 | . 28 27 20 Peak Build Rating 9 | 7 8 8 9 Average Rating 7 | 6 7 8 8 On Entrance 7 | 6 7 8 8 Avg Prop Armor Cover (%) . | . . . . Naked Turns . | . . . . Heaviest Build 51 | 12 50 51 50 Greatest Support 60 | 20 20 20 60 Greatest Overweight (x) 2 | . 2 2 . Average Overweight (x) 1 | . . 2 . Largest Inventory Capacity 20 | 8 20 20 20 Average Capacity 16 | 8 10 20 20 Most Carried 17 | 7 12 15 17 Average Carried 10 | 6 8 12 12 Final Capacity 20 | 8 20 20 20 Final Carried 15 | 4 12 15 12 Class Distribution -------------------- 94% | Mutant 5% | Scavenger-Mutant Dominant Class ---------------- Mutant | -10/Materials Mutant | -10/Mines Scavenger-Mutant | -9/Materials Resources | -11 -10 -10 -9 ----------- Run | Yrd Mat Min Mat Matter Collected 905 | 294 411 200 . Remotely . | . . . . Salvage Created 1019 | 185 498 280 56 Parts 79 | 16 35 24 4 Haulers Intercepted 2 | . 2 . . Recyclers Shooed 2 | . 1 1 . Parts Field Recycled . | . . . . Retrieved Matter . | . . . . Parts Self-Destructed . | . . . . Prevented . | . . . . Parts Restored . | . . . . Kills | -11 -10 -10 -9 ------- Run | Yrd Mat Min Mat Combat Hostiles Destroyed 23 | . 11 11 1 Guns 20 | . 11 8 1 AOE 3 | . . 3 . Classes Destroyed 9 | 2 6 . 1 Worker 1 | . 1 . . Builder 1 | . 1 . . Tunneler 6 | 5 . 1 . Hauler 2 | . 2 . . Recycler 3 | 1 1 1 . Watcher 2 | . 2 . . Swarmer 17 | . 8 9 . Grunt 5 | . 3 2 . Sentry 1 | . . . 1 Best Kill Streak 6 | 4 6 5 1 Combat Bots Only 6 | . 6 3 1 Max Kills in Single Turn 2 | 1 2 2 1 Gunslinging . | . . . . Exploded 2 | . . 2 . Melee . | . . . . Uniques/NPCs Destroyed . | . . . . Combat | -11 -10 -10 -9 -------- Run | Yrd Mat Min Mat Hostile Shots Fired 100 | . 69 31 . Missed 26 | . 16 10 . Hits 74 | . 53 21 . Projectile 74 | . 53 21 . Damage Taken 684 | . 447 237 . Core 149 | . 122 27 . Absorbed by Shields . | . . . . Core Remaining (%) 70 | 100 . 40 . Volleys Fired 96 | 21 55 18 2 Largest 2 | 2 2 2 2 Hottest 40 | 40 40 40 40 Shots Fired 189 | 42 110 33 4 Gun 186 | 42 110 30 4 Cannon . | . . . . Launcher 3 | . . 3 . Special . | . . . . Kinetic 186 | 42 110 30 4 Thermal . | . . . . Explosive 3 | . . 3 . Electromagnetic . | . . . . Robot Hit Streak 8 | 8 8 4 3 Robot Miss Streak 5 | 4 5 2 1 Penetration Max . | . . . . Secondary Targets 6 | . 4 2 . Max Gunslinging Chain 1 | . 1 1 . Shots Hit Robots 99 | 22 57 17 3 Core Hits 54 | 7 30 16 1 Critical Kills . | . . . . Critical Parts Destroyed 1 | . . 1 . Critical Strikes 1 | . . 1 . Destroy 1 | . . 1 . Melee Attacks . | . . . . Impact . | . . . . Slashing . | . . . . Piercing . | . . . . Sneak Attacks . | . . . . Combat Hostiles . | . . . . Follow-up Attacks . | . . . . Damage Inflicted 1376 | 198 758 383 37 Guns 1234 | 198 758 241 37 Cannons . | . . . . Explosions 128 | . . 128 . Melee . | . . . . Ramming 14 | . . 14 . Kinetic 1234 | 198 758 241 37 Thermal . | . . . . Explosive 128 | . . 128 . Electromagnetic . | . . . . Impact . | . . . . Slashing . | . . . . Piercing . | . . . . Highest Corruption 1 | . . . 1 Average Corruption 1 | . . . 1 Corruption Purged . | . . . . Corruption Blocked . | . . . . Overload Shots . | . . . . Overflow Damage . | . . . . Projectiles . | . . . . Explosions . | . . . . Melee . | . . . . Knockbacks . | . . . . Impact . | . . . . Kinetic . | . . . . Secondary . | . . . . Self-Inflicted Damage 38 | . . 38 . Shots 1 | . . 1 . Rammed . | . . . . Targets Rammed 3 | . . 3 . Kicked 3 | . . 3 . Crushed . | . . . . Highest Temperature 15 | . 6 15 . Average Temperature 8 | . 5 9 . Received Heat Transfer 99 | . 48 51 . Siege Activations . | . . . . Martial Activations . | . . . . Shielding Activations . | . . . . Robots Disrupted . | . . . . Combat Hostiles . | . . . . Robots Corrupted . | . . . . Combat Hostiles . | . . . . Parts Fried . | . . . . Impact Corruptions . | . . . . Robots Melted . | . . . . Combat Hostiles . | . . . . Parts Melted . | . . . . Heat Transferred . | . . . . Parts Sabotaged . | . . . . Parts Stolen . | . . . . Parts Stripped . | . . . . Power Chain Reactions . | . . . . Alert | -11 -10 -10 -9 ------- Run | Yrd Mat Min Mat Maximum Alert Level . | . . . . Low Security (%) 100 | 100 100 100 100 Level 1 . | . . . . Level 2 . | . . . . Level 3 . | . . . . Level 4 . | . . . . Level 5 . | . . . . High Security . | . . . . Max Security . | . . . . Peak Influence 171 | 10 171 134 33 Initial . | . . . . Average 34 | 3 44 31 4 Influence Increases 717 | 30 360 294 33 Destroy 0b10 Robot/C 460 | . 220 220 20 Destroy 0b10 Robot/NC 75 | 30 35 10 . Destroy Leader 98 | . 48 40 10 Allied During Kill 3 | . . . 3 Successful Hack 12 | . 12 . . Select Force Hacks 30 | . 30 . . Disable Machine 15 | . 15 . . Destroy Structure 24 | . . 24 . Influence Decreases 694 | 30 360 294 10 Time Decay 573 | 30 239 294 10 Lost Part 10 | . 10 . . Purge Threat 111 | . 111 . . Squads Dispatched 1 | . 1 . . Investigation 1 | . 1 . . Extermination . | . . . . Reinforcement . | . . . . Assault . | . . . . Garrison . | . . . . Intercept . | . . . . Searches Triggered . | . . . . Construction Impeded . | . . . . Haulers Reinforced . | . . . . Active Scanning Responses . | . . . . Cargo Convoy Interrupts . | . . . . Stealth | -11 -10 -10 -9 --------- Run | Yrd Mat Min Mat Distress Signals 4 | . 3 1 . Communications Jammed . | . . . . Distress Signals . | . . . . Times Spotted 30 | . 18 11 1 Peak Tracking Total 5 | . 5 3 1 Tactical Retreats . | . . . . Traps | -11 -10 -10 -9 ------- Run | Yrd Mat Min Mat Traps Triggered 1 | . . . 1 Indirectly . | . . . . Trap Hack Attempts . | . . . . Triggered . | . . . . Disarmed . | . . . . Reprogrammed . | . . . . Reused . | . . . . Traps Extracted . | . . . . Installed . | . . . . Triggered . | . . . . Machines | -11 -10 -10 -9 ---------- Run | Yrd Mat Min Mat Machines Disabled 1 | . 1 . . Max in Single Turn 1 | . 1 . . Machines Repaired . | . . . . Machines Dismantled . | . . . . Machines Sabotaged . | . . . . Overloaded Fab Kills . | . . . . Hacking | -11 -10 -10 -9 --------- Run | Yrd Mat Min Mat Machines Accessed 6 | . 6 . . Terminals 5 | . 5 . . Fabricators . | . . . . Repair Stations . | . . . . Recycling Units 1 | . 1 . . Scanalyzers . | . . . . Garrison Access . | . . . . Total Hacks 18 | . 18 . . Successful 9 | . 9 . . Failed 9 | . 9 . . Catastrophic . | . . . . Database Lockouts . | . . . . Manual 10 | . 10 . . Terminals 16 | . 16 . . Fabricators . | . . . . Repair Stations . | . . . . Recycling Units 2 | . 2 . . Scanalyzers . | . . . . Garrison Access . | . . . . Terminal Hacks 7 | . 7 . . Part Schematic 1 | . 1 . . Robot Analysis 2 | . 2 . . Unreport Threat 1 | . 1 . . Locate Traps 2 | . 2 . . Recall Investigation 1 | . 1 . . Fabricator Hacks . | . . . . Repair Station Hacks . | . . . . Recycling Unit Hacks . | . . . . Scanalyzer . | . . . . Garrison Access Hacks . | . . . . Unauthorized Hacks 2 | . 2 . . Terminals 1 | . 1 . . Botnet 1 | . 1 . . Fabricators . | . . . . Repair Stations . | . . . . Recycling Units 1 | . 1 . . Tunnel 1 | . 1 . . Scanalyzers . | . . . . Garrison Access . | . . . . Data Cores Recovered . | . . . . Used . | . . . . Hacking Detections 4 | . 4 . . Full Trace Events . | . . . . Feedback Events . | . . . . Feedback Blocked . | . . . . Robot Schematics Acquired . | . . . . Robots Built . | . . . . Authchips . | . . . . Time . | . . . . Total Robot Build Rating . | . . . . Part Schematics Acquired 1 | . 1 . . Parts Built . | . . . . Authchips . | . . . . Time . | . . . . Total Part Build Rating . | . . . . Part Studies Acquired . | . . . . Parts Repaired . | . . . . Time . | . . . . Parts Recycled . | . . . . Recycled Matter . | . . . . Retrieved Matter . | . . . . Retrieved Components . | . . . . Parts Scanalyzed . | . . . . Part Schematics Acquired . | . . . . Parts Damaged . | . . . . Bothacking | -11 -10 -10 -9 ------------ Run | Yrd Mat Min Mat Used RIF Installer . | . . . . Robots Hacked . | . . . . Non-combat . | . . . . Combat . | . . . . Robot Hacks Applied . | . . . . Relay Couplers Released . | . . . . Fabnet Peak Effective % . | . . . . Robots Rewired . | . . . . Allies Hacked . | . . . . Hacks Repelled . | . . . . Allies | -11 -10 -10 -9 -------- Run | Yrd Mat Min Mat Total Allies 3 | . . 3 . Largest Group 3 | . . 3 3 Highest-Rated Group 40 | . . 40 40 Highest-Rated Ally 16 | . . 16 16 Total Orders 1 | . . . 1 STAY 1 | . . . 1 Ally Attacks 2 | . . . 2 Total Damage 20 | . . . 20 Kills . | . . . . Allies Corrupted 1 | . . . 1 Allies Melted . | . . . . Intel | -11 -10 -10 -9 ------- Run | Yrd Mat Min Mat Active Infowar (turns) 3066 | 23 1138 1819 86 Seismic 3066 | 23 1138 1819 86 Robot Analysis Total 2 | . 2 . . Derelict Logs Recovered 2 | . . 2 . Drone Launches . | . . . . Drone Recoveries . | . . . . Exploration | -11 -10 -10 -9 ------------- Run | Yrd Mat Min Mat Turns Passed 3211 | 119 1138 1868 86 Spaces Moved 1425 | 31 678 691 25 Core . | . . . . Treads 25 | . . . 25 Legs 1400 | 31 678 691 . Wheels . | . . . . Hover . | . . . . Flight . | . . . . Fastest Speed 120 | 120 120 260 160 Average Speed 196 | 120 136 260 160 Slowest Speed 260 | 120 260 260 160 Overloaded Moves . | . . . . Propulsion Burnouts . | . . . . Robots Hopped . | . . . . Potential Cave-ins . | . . . . Cave-ins Triggered . | . . . . Exploration Rate (%) 45 | 3 76 98 5 Regions Visited 3 Branch Regions 1 Pre-discovered Areas 2 | . 1 1 . Known Exits Taken . | . . . . Unknown Exits Taken 3 | 1 1 1 . Scrap Searched 1 | . . 1 . Spaces Dug . | . . . . Terrain Destroyed 24 | . . 24 . Melee . | . . . . Projectile . | . . . . AOE 24 | . . 24 . Terrain Rammed . | . . . . Walls Destroyed . | . . . . Machines Disabled . | . . . . Actions | -11 -10 -10 -9 --------- Run | Yrd Mat Min Mat Total 1659 | 76 793 722 68 Wait 75 | 20 22 . 33 Move 1422 | 30 677 690 25 Hop . | . . . . Pick Up 17 | 1 13 3 . Fast Attach 2 | 1 1 . . Attach 3 | . . . 3 Detach 2 | . . . 2 Swap 20 | . 11 8 1 Drop 19 | 3 14 . 2 Fire 96 | 21 55 18 2 Melee . | . . . . Ram . | . . . . Kick 3 | . . 3 . Crush . | . . . . Escape Stasis . | . . . . Rewire . | . . . . Trap . | . . . . Miscellaneous . | . . . . Route ------- -11/Scrapyard -10/Materials (discovered 5 exits: [*Mat x2] / [*Min x2] / [*Sub]) -10/Mines (discovered 3 exits: [*Mat x2] / [*Sub]) -9/Materials History --------- Turn | Location | Event 13 | -11/Scrapyard | Discovered new exit (range 3) 120 | -11/Scrapyard | Entered Materials 213 | -10/Materials | Discovered new exit (range 14) 300 | -10/Materials | Build established: Mutant 571 | -10/Materials | Discovered new exit (range 8) 705 | -10/Materials | Discovered new exit (range 15) 926 | -10/Materials | Discovered new exit (range 8) 978 | -10/Materials | Discovered new exit (range 4) 1258 | -10/Materials | Entered Mines 1747 | -10/Mines | Learned Materials terminal intel 1780 | -10/Mines | Core integrity fell below 50% 1921 | -10/Mines | Discovered new exit (range 7) 2129 | -10/Mines | Received a Rocket Launcher from a helpful Derelict 2281 | -10/Mines | Discovered new exit (range 6) 2343 | -10/Mines | Discovered new exit (range 8) 3022 | -10/Mines | Assisted by bots powering up and referring to "LRC-V3" 3126 | -10/Mines | Entered Materials 3126 | -9/Materials | Accompanied by 3 allies 3126 | -9/Materials | Evolved 2 slots: Propulsion x1, Utility x1 3127 | -9/Materials | Loaded intel: 12 terminal locations 3212 | -9/Materials | Self-destructed Last Messages --------------- command?" 03022_ Trooper 1b: "Hello LRC-V3. What is your command?" 03051_ Kicked K-01 Serf out of the way. PARAMETERS=PROPULSION+1,UTILITY+1 LOCATION=UNKNOWN GOAL=ESCAPE Loading Materials terminal intel (x12)... 03128_ Dropped Aluminum Leg. 03181_ R-06 Scavenger collects Aluminum Leg. 03195_ Trooper 1b triggered Shock Trap. 03195_ The floor emits a surge of raw power. 03196_ Trooper 1b triggered Shock Trap. 03196_ The floor emits a surge of raw power. 03197_ Trooper 1b system terminally corrupted. 03199_ Y-45 Defender destroyed. 03210_ Triggered Shock Trap. 03210_ The floor emits a surge of raw power. 03210_ System corrupted (+1). Map ----- +----------------------------------------------------+ | ????????????????????????T?????????? | | ??????????????????????????????????? | | ??????????????????????????????????? | | ??????????????????????????????????? | | ??????????????????????????????????? | | ??????????????????????????????????? | | ??????????????????????????????????? | | ??????????????????????????????????? | | ??????????????????????????????????? | | ??????????????????????????????????? | | ??????????????????????????????????? | | ??????????????????????????????????? | | ?????????+##??????????????????????? | | ????????? ??????????????????????? | | ????????? ??????????????????????? | | ????????? ??????????????????????? | | ????????? = ??????????????????????? | | ?????????[%!??????????????????????? | | ?????????#[#??????????????????????? | | ?????????# #??????????????????????? | | ?????????# #??????????????????????? | | ?????????# ###????????????""??????? | | ?????????# ^#????????????T"??????? | | ?????????+ +????????????""??????? | | ?????????#^^r#????????????????????? | | ?????????#@^ #????????????????????? | | ?????????# #????????????????????? | | ?????????# g #????????????????????? | | ?????????# g #????????????????????? | | ?????????# #????????????????????? | | ?????????# ########?????????????? | | ?????????# # #?????????????? | | ########## # #?????????????? | | # # # #?????????????? | | # # # #?????????????? | | # # # #?????????????? | | # # # #?????????????? | | # + + #?????????????? | | # # # #?????????????? | | # # # #?????????????? | | # # # !!! #?????????????? | | # # # !!! #?????????????? | | ########## # !!! #?????????????? | | ?????????##### #?????????????? | | ?????????????########?????????????? | | ??????????????????????????????????? | | ??????????????????????????????????? | | ??????????????????????????????????? | | ??????????????????????????????????? | | ??????????????????????????????????? | +----------------------------------------------------+ Best States ------------- Heat Dissipation 28 Energy Generation 10 Energy Capacity 250 Matter Stores 300 Matter Capacity 300 Sight Range 16 Terrain Scan Density 10 Armor Coverage 150 Evasion (%) 55 Recoil Reduction 3 Item Schematics ----------------- Huge Storage Unit | -10/Materials | Hacked Robot Schematics ------------------ None Fabricated ------------ Nothing Repaired ---------- Nothing Studied --------- None Alien Tech Used ----------------- None Achievements -------------- None Challenges ------------ None Game ------ Seed SchematicHardlightMultitool Manual? 0 Play Time 00:10:48 Cumulative 149.6 hours Start 2026.03.04 @ 23:43:17 End 2026.03.04 @ 23:53:20 Sessions 1 Manual Loads 0 Difficulty Rogue Special Mode None Game No. 108 Rogue 107 Adventurer 0 Explorer 1 Win Type - Total 15 Types 11/0/2/1/0/0/0/1/0/0 Lore% 55 Gallery% 56 Achievement% 53 Wizard Run 0 Options --------- Layout 2 ASCII 0 Keyboard 1 Movement Numpad Keybinds 0 Fullscreen 2 Font 24/Terminus Map View 50x44 Zoom Use 0% Tactical HUD 1 Map Filters NONE Filters NONE Steam 1 RUN: 8d3d9846-dff4-43ac-b760-93544f36ae44